[Event "7th Sharjah Masters 2024"]
[Site "Sharjah"]
[Date "2024.05.19"]
[Round "6.1"]
[White "Shankland, Sam"]
[Black "Aravindh, Chithambaram VR."]
[Result "1/2-1/2"]
[ECO "D02"]
[WhiteElo "2671"]
[BlackElo "2671"]
[Annotator "TA"]
[PlyCount "47"]
[EventDate "2024.05.13"]
[EventType "swiss"]
[EventCountry "UAE"]
[SourceTitle "playchess.com"]
[Source "ChessBase"]
[SourceQuality "1"]
[TimeControl "5400+30"]

{[%evp 9,47,13,0,6,5,0,16,0,0,0,14,0,0,0,0,6,14,15,17,18,18,0,0,0,0,-8,0,0,0,0,0,0,0,-8,-8,-14,-11,-9,-2,-5]} 1. d4 {[%emt 0:00:30]} d5 {[%emt 0:00:10]} 2. Nf3 {[%emt 0:00:00]} Bf5 {[%emt 0:00:19]} 3. Bf4 {[%emt 0:00:26]} e6 {[%emt 0:00:16]} 4. Nbd2 {[%emt 0:01:01]} Bd6 {[%emt 0:01:14]} 5. Bxd6 {[%emt 0:01:17]} Qxd6 {[%emt 0:03:47] The position is equal.} 6. c4 {[%emt 0:00:49]} Nf6 {[%emt 0:03:07]} 7. Qb3 {[%emt 0:01:57]} b6 {[%emt 0:08:21]} 8. Rc1 {[%emt 0:05:36]} O-O {[%emt 0:02:48]} 9. e3 {[%emt 0:02:05]} Nbd7 {[%emt 0:07:06]} 10. cxd5 {[%emt 0:03:46]} exd5 {[%emt 0:00:11]} 11. Ba6 {[%emt 0:02:33]} c5 {[%emt 0:14:03]} 12. Qa3 {[%emt 0:00:20]} Ne8 {[%emt 0:06:59]} 13. dxc5 {[%emt 0:04:49]} bxc5 {[%emt 0:09:44]} 14. Bb5 {[%emt 0:04:02]} Nef6 {[%emt 0:09:08]} 15. O-O {[%emt 0:01:10]} Qb6 {[%emt 0:00:14]} 16. Bxd7 {[%emt 0:10:47]} Nxd7 {[%emt 0:00:44]} 17. Rfd1 {[%emt 0:00:07]} Rfc8 {[%emt 0:04:54]} 18. e4 {[%emt 0:07:25]} dxe4 {[%emt 0:00:18]} 19. Nxe4 {[%emt 0:00:06]} Bxe4 {[%emt 0:00:36]} 20. Rxd7 {[%emt 0:00:04]} Rd8 {[%emt 0:04:15]} 21. Rcd1 {[%emt 0:02:47]} h6 {[%emt 0:03:20]} 22. h3 {[%emt 0:02:28]} Rxd7 {[%emt 0:04:06]} 23. Rxd7 {[%emt 0:00:05]} Qe6 {[%emt 0:00:04]} 24. Rd1 {[%emt 0:05:36] A rather calm draw.   Weighted Error Value: White=0.04 (flawless) /Black=0.04 (flawless) .  Inaccurate:     	White=1     	---        OK:         	White=6     	Black=8      Best:        	White=1     	---} 1/2-1/2

[Event "7th Sharjah Masters 2024"]
[Site "Sharjah"]
[Date "2024.05.19"]
[Round "6.2"]
[White "Daneshvar, Bardiya"]
[Black "Niemann, Hans Moke"]
[Result "1/2-1/2"]
[ECO "D46"]
[WhiteElo "2582"]
[BlackElo "2689"]
[Annotator "TA"]
[PlyCount "90"]
[EventDate "2024.05.13"]
[EventType "swiss"]
[EventCountry "UAE"]
[SourceTitle "playchess.com"]
[Source "ChessBase"]
[SourceQuality "1"]
[TimeControl "5400+30"]

{[%evp 21,90,14,12,8,23,17,11,12,10,11,36,0,0,0,0,0,33,19,80,74,66,83,77,56,74,85,74,75,67,74,102,95,97,53,56,38,58,60,54,12,82,81,73,97,82,87,81,79,83,67,77,65,93,76,92,91,91,91,84,87,90,63,54,56,57,61,54,54,47,59,73]} 1. d4 {[%emt 0:00:05]} Nf6 {[%emt 0:00:20]} 2. c4 {[%emt 0:00:08]} e6 {[%emt 0:00:08]} 3. Nf3 {[%emt 0:00:07]} d5 {[%emt 0:00:18]} 4. Nc3 {[%emt 0:00:06]} c6 {[%emt 0:03:21]} 5. e3 {[%emt 0:00:08]} Nbd7 {[%emt 0:00:10]} 6. Qc2 {[%emt 0:00:21]} Bd6 {[%emt 0:00:35]} 7. Bd3 {[%emt 0:00:38]} dxc4 {[%emt 0:00:22]} 8. Bxc4 {[%emt 0:00:05]} b5 {[%emt 0:00:21]} 9. Bd3 {[%emt 0:00:08]} Bb7 {[%emt 0:03:23]} 10. O-O {[%emt 0:01:17]} O-O {[%emt 0:02:06]} 11. e4 {[%emt 0:00:10]} e5 {[%emt 0:00:23]} 12. h3 {[%emt 0:00:21]} Re8 {[%emt 0:02:40]} 13. dxe5 {[%emt 0:00:35]} Nxe5 {[%emt 0:01:08]} 14. Nxe5 {[%emt 0:00:11] The position is equal.} Bxe5 {[%emt 0:00:09]} 15. Be3 {[%emt 0:00:06]} Bd4 {[%emt 0:03:19]} 16. Rae1 {[%emt 0:11:10]} a6 {[%emt 0:04:03]} 17. Bxd4 {[%emt 0:05:54]} Qxd4 {[%emt 0:00:22]} 18. Ne2 {[%emt 0:00:51][%cal Bc3e2,Be2g3,Bg3e4,Be4f6][%mdl 32]} Qb6 {[%emt 0:03:28]} 19. Ng3 {[%emt 0:06:24]} g6 {[%emt 0:03:10]} (19... Nd7 $11) 20. e5 $16 {[%emt 0:10:42]} Nd5 {[%emt 0:06:20]} 21. Ne4 {[%emt 0:18:11]} Rad8 {[%emt 0:06:53][%cal Oe8e7] [#]} (21... Rxe5 $2 22. Nf6+ Nxf6 23. Rxe5 $18) 22. Qd2 $1 {[%emt 0:06:48]} Rxe5 {[%emt 0:16:38] [#] Hoping for ...c5.} 23. Nf6+ $1 {[%emt 0:00:47]} Nxf6 {[%emt 0:00:50]} 24. Rxe5 {[%emt 0:00:04]} c5 {[%emt 0:00:15]} 25. Qe3 {[%emt 0:05:33]} Kg7 {[%emt 0:04:02]} 26. Re1 {[%emt 0:03:37]} (26. Rxc5 $2 Rxd3 27. Qxd3 Qxc5 $19) 26... Rd4 {[%emt 0:08:01]} 27. Bf1 {[%emt 0:03:50]} (27. Re7 {feels hotter.} Qc6 28. Bf1 Bc8 29. Qe5) 27... Qd6 {[%emt 0:00:34]} 28. Qc3 {[%emt 0:04:05]} Nd5 $1 {[%emt 0:02:14]} (28... Ne4 $2 29. R5xe4 (29. R1xe4 b4 $18) 29... Bxe4 30. Rxe4 $18) 29. Qc1 {[%emt 0:01:07]} h5 {[%emt 0:05:31]} 30. b3 {[%emt 0:02:57]} Bc8 {[%emt 0:08:18]} (30... b4 $11 {keeps the balance.}) 31. R5e4 {[%emt 0:06:13] aiming for Rxd4.} Bf5 {[%emt 0:00:16][%cal Bc8f5,Bf5e4,Be4b7][%mdl 32]} 32. Rxd4 {[%emt 0:00:43]} cxd4 {[%emt 0:00:02] [#]} 33. Rd1 $1 {[%emt 0:00:16]} Nf4 {[%emt 0:02:54]} ({Wrong is} 33... Nc3 $2 34. Qxc3 dxc3 35. Rxd6 $18) 34. Qb2 {[%emt 0:02:35]} Ne6 {[%emt 0:00:11]} 35. h4 {[%emt 0:00:35]} Be4 {[%emt 0:00:31]} 36. Qd2 {[%emt 0:02:08]} Bb7 {[%emt 0:08:24]} 37. a4 {[%emt 0:01:43]} Qd8 {[%emt 0:00:17]} 38. axb5 {[%emt 0:01:11]} axb5 {[%emt 0:00:05]} 39. Qe2 {[%emt 0:01:38]} ({Much weaker is} 39. Bxb5 $6 Bxg2 40. Kxg2 Qd5+ 41. f3 Qxb5 $11) 39... Qxh4 {[%emt 0:02:22]} 40. Qxb5 {[%emt 0:00:35]} Qe4 {[%emt 0:00:08]} 41. Qd3 {[%emt 0:01:22] And now Qxe4 would win.} Qg4 {[%emt 0:02:11] White is slightly better.} 42. Qe2 $1 {[%emt 0:00:55] Black must now prevent Qxg4.} Qg5 {[%emt 0:00:21] ...Nf4 is the strong threat.} 43. Re1 {[%emt 0:00:46]} Nf4 {[%emt 0:00:37]} 44. Qe5+ {[%emt 0:01:08]} Qxe5 {[%emt 0:00:07]} 45. Rxe5 {[%emt 0:00:01]} d3 {[%emt 0:00:05] Weighted Error Value: White=0.06 (flawless) /Black=0.12 (very precise) .  Mistake:       	---       	Black=2      Inaccurate:     	White=3     	Black=3      OK:         	White=17    	Black=10     Best:        	White=2     	Black=3      Strong:       	White=3     	Black=1      Brilliant:      	White=1     	---} 1/2-1/2

[Event "7th Sharjah Masters 2024"]
[Site "Sharjah"]
[Date "2024.05.19"]
[Round "6.3"]
[White "Salem, A.R. Saleh"]
[Black "Tabatabaei, M. Amin"]
[Result "1/2-1/2"]
[ECO "E11"]
[WhiteElo "2629"]
[BlackElo "2707"]
[Annotator "TA"]
[PlyCount "120"]
[EventDate "2024.05.13"]
[EventType "swiss"]
[EventCountry "UAE"]
[SourceTitle "playchess.com"]
[Source "ChessBase"]
[SourceQuality "1"]
[TimeControl "5400+30"]

{[%evp 41,120,10,0,0,0,0,12,31,18,13,84,77,94,84,108,92,142,136,146,149,153,153,160,159,159,68,66,76,64,46,66,51,53,75,354,319,315,164,200,189,187,210,210,132,151,147,125,90,80,80,150,30,41,0,149,142,135,0,13,0,0,0,0,0,0,0,0,0,0,0,0,0,0,0,0,0,0,0,0,0,0]} 1. d4 {[%emt 1:31:00]} Nf6 {[%emt 1:31:00]} 2. c4 e6 {[%emt 0:00:30]} 3. Nf3 {[%emt 0:01:00]} d5 {[%emt 0:00:30]} 4. g3 {[%emt 0:00:30]} Bb4+ {[%emt 0:00:30]} 5. Bd2 {[%emt 0:00:30]} Be7 {[%emt 0:00:30]} 6. Bg2 {[%emt 0:00:30]} O-O {[%emt 0:00:30]} 7. O-O {[%emt 0:00:30]} Nbd7 {[%emt 0:00:30]} 8. Qc2 {[%emt 0:00:30]} c6 {[%emt 0:00:30]} 9. Rd1 {[%emt 0:00:30]} b6 {[%emt 0:00:30]} 10. b3 {[%emt 0:00:30]} a5 {[%emt 0:00:30] E11: Bogo-Indian.} 11. Bc3 {[%emt 0:00:30]} Bb7 {[%emt 0:00:30]} 12. Nbd2 {[%emt 0:00:30]} Qc7 {[%emt 0:00:30]} 13. Bb2 {[%emt 0:00:30]} c5 {[%emt 0:00:30]} 14. cxd5 {[%emt 0:00:30]} exd5 $146 {[%emt 0:00:30]} ({Predecessor:} 14... Nxd5 15. dxc5 Nxc5 16. Rac1 Rfd8 17. Qb1 Ba6 18. Nc4 Bf6 19. Bd4 Bxd4 20. Nxd4 Rd7 {½-½ Rudykh,S (2208)-Vliet,E (2213) CZE Bilina09 email 2018}) 15. a4 {[%emt 0:00:30]} Nb8 {[%emt 0:00:30]} 16. Rac1 {[%emt 0:00:30]} Na6 {[%emt 0:00:30]} 17. dxc5 {[%emt 0:00:30]} bxc5 {[%emt 0:00:30]} 18. Nd4 {[%emt 0:00:30]} Nb4 {[%emt 0:00:30]} 19. Qb1 {[%emt 0:00:30]} Rfe8 {[%emt 0:00:30]} 20. Nf5 {[%emt 0:00:30]} Ba6 {[%emt 0:00:30]} 21. Bf1 {[%emt 0:00:30]} Qb6 {[%emt 0:00:30]} 22. e4 {[%emt 0:00:30]} Bxf1 {[%emt 0:00:30]} 23. Rxf1 {[%emt 0:00:30]} dxe4 {[%emt 0:00:30]} 24. Nxe7+ {[%emt 0:00:30]} (24. Nxe4 Nxe4 25. Qxe4 Bf8 (25... Bf6 26. Qb1 $11)) 24... Rxe7 {[%emt 0:00:30]} 25. Bxf6 {[%emt 0:00:30]} Qxf6 {[%emt 0:00:30]} (25... gxf6 $11 26. Nxe4 Rd8) 26. Nxe4 $16 {[%emt 0:00:30]} Qg6 {[%emt 0:00:30]} 27. Rc4 {[%emt 0:00:30]} Na6 {[%emt 0:00:30]} 28. Rd1 {[%emt 0:00:30]} Re6 {[%emt 0:00:30]} ({Better is} 28... Nb4) 29. Qd3 $16 {[%emt 0:00:30]} (29. Nxc5 Qxb1 30. Rxb1 Nxc5) 29... h6 {[%emt 0:00:30]} 30. Nxc5 {[%emt 0:00:30]} Qxd3 {[%emt 0:00:30]} 31. Rxd3 {[%emt 0:00:30]} (31. Nxd3 Rd8 $16) 31... Nxc5 {[%emt 0:00:30]} 32. Rxc5 {[%emt 0:00:30]} Rb6 {[%emt 0:00:30]} 33. Rb5 {[%emt 0:00:30]} (33. h4 $16) 33... Rxb5 $1 $14 {[%emt 0:00:30]} 34. axb5 {[%emt 0:00:30]} Kf8 {[%emt 0:00:30]} 35. Kg2 {[%emt 0:00:30]} Ke7 {[%emt 0:00:30]} 36. Kf3 {[%emt 0:00:30]} Rc8 {[%emt 0:00:30]} 37. Ke4 {[%emt 0:00:30]} Rc5 $2 {[%emt 0:00:30][%mdl 8192]} (37... Ke6 $16) 38. Rd5 $1 $18 {[%emt 0:00:30]} (38. b6 Rb5 $11) 38... Rc3 {[%emt 0:00:30] [#]} 39. b4 {[%emt 0:00:30]} (39. Kd4 $142 $1 {[%mdl 512]} Rxb3 40. Kc5) 39... a4 {[%emt 0:00:30]} 40. Kd4 {[%emt 0:00:30]} Rc1 {[%emt 0:00:30]} 41. Rc5 $1 {[%emt 0:00:30]} (41. b6 Rd1+ 42. Kc5 Rxd5+ 43. Kxd5 Kd7 $17) 41... Rb1 {[%emt 0:00:30]} 42. Rc7+ {[%emt 0:00:30]} Kd6 {[%emt 0:00:30]} 43. Rc6+ {[%emt 0:00:30]} (43. Rxf7 a3 (43... Rxb4+ 44. Kc3 $11) 44. Ra7 (44. Rxg7 $2 {perishes.} a2 $19) 44... Rxb4+ 45. Kd3 Rxb5 $11) 43... Kd7 {[%emt 0:00:30]} 44. Ra6 $1 {[%emt 0:00:30]} Rxb4+ {[%emt 0:00:30]} 45. Kc5 {[%emt 0:00:30]} Rb2 {[%emt 0:00:30] [#]} 46. Rxa4 {[%emt 0:00:30]} (46. f4 $1 $16) 46... Rxf2 $11 {[%emt 0:00:30]} 47. Rf4 {[%emt 0:00:30]} Rc2+ {[%emt 0:00:30]} (47... Rxf4 $1 $11 48. gxf4 g5) 48. Kb6 $16 {[%emt 0:00:30]} Ke6 {[%emt 0:00:30] [#]} 49. h4 {[%emt 0:00:30]} (49. Rh4 $1 $16) 49... g5 $11 {[%emt 0:00:30]} 50. Ra4 {[%emt 0:00:30]} Rc3 {[%emt 0:00:30]} 51. hxg5 {[%emt 0:00:30]} hxg5 {[%emt 0:00:30]} 52. g4 {[%emt 0:00:30]} f5 {[%emt 0:00:30]} 53. gxf5+ {[%emt 0:00:30]} Kxf5 {[%emt 0:00:30]} 54. Ka6 {[%emt 0:00:30]} g4 {[%emt 0:00:30]} 55. b6 {[%emt 0:00:30]} Rb3 {[%emt 0:00:30]} 56. Ra5+ {[%emt 0:00:30]} Ke4 {[%emt 0:00:30]} 57. b7 {[%emt 0:00:30]} Rxb7 {[%emt 0:00:30]} 58. Kxb7 {[%emt 0:00:30]} g3 {[%emt 0:00:30]} 59. Ra3 {[%emt 0:00:30]} Kf4 {[%emt 0:00:30]} 60. Rxg3 {[%emt 0:00:30]} Kxg3 {[%emt 0:00:30]} 1/2-1/2

[Event "7th Sharjah Masters 2024"]
[Site "Sharjah"]
[Date "2024.05.19"]
[Round "6.4"]
[White "Yuffa, Daniil"]
[Black "Erigaisi Arjun"]
[Result "0-1"]
[ECO "A50"]
[WhiteElo "2617"]
[BlackElo "2762"]
[Annotator "TA"]
[PlyCount "84"]
[EventDate "2024.05.13"]
[EventType "swiss"]
[EventCountry "UAE"]
[SourceTitle "playchess.com"]
[Source "ChessBase"]
[SourceQuality "1"]
[TimeControl "5400+30"]

{[%evp 9,84,52,51,59,66,64,61,37,80,25,31,22,26,35,27,36,34,0,0,0,0,0,0,0,0,0,0,-75,-72,-74,0,0,0,0,0,0,0,0,5,-36,0,0,12,0,54,8,9,0,0,0,0,-2,0,0,0,0,0,0,0,-114,-111,-214,-41,-54,-33,-25,-16,-181,-188,-190,-190,-1193,-1009,-859,-1137,-2825,-2779]} 1. d4 {[%emt 0:00:05]} Nf6 {[%emt 0:07:20]} 2. c4 {[%emt 0:00:07]} b6 {[%emt 0:00:04]} 3. Nc3 {[%emt 0:02:28]} Bb7 {[%emt 0:00:36]} 4. Qc2 {[%emt 0:01:09]} Nc6 {[%emt 0:00:08]} 5. Nf3 {[%emt 0:01:57]} Nb4 {[%emt 0:00:08]} 6. Qb1 {[%emt 0:05:15]} Bxf3 {[%emt 0:00:15]} 7. gxf3 {[%emt 0:01:08]} g6 {[%emt 0:00:07]} 8. f4 {[%emt 0:03:15] White is slightly better.} Bg7 {[%emt 0:02:11]} 9. Bg2 {[%emt 0:03:32] Dodges e6} ({Better is} 9. e4 $1 $16) 9... Rb8 $11 {[%emt 0:00:07]} 10. a3 {[%emt 0:08:12]} Nc6 {[%emt 0:00:27]} 11. Qd3 {[%emt 0:00:49]} O-O {[%emt 0:07:09]} 12. e4 {[%emt 0:04:52]} e6 {[%emt 0:02:39]} 13. Be3 {[%emt 0:07:19]} Nh5 {[%emt 0:03:36][%cal Oc6d4] White must now prevent ...Nxd4!} 14. Bf3 {[%emt 0:10:40]} Qh4 {[%emt 0:00:40]} 15. Ne2 $1 {[%emt 0:03:10]} a6 {[%emt 0:14:49]} 16. Rg1 {[%emt 0:06:01]} b5 {[%emt 0:06:17]} 17. c5 {[%emt 0:00:45]} b4 {[%emt 0:01:38]} 18. Rg5 {[%emt 0:13:37]} (18. a4 $11) 18... bxa3 $17 {[%emt 0:15:52]} (18... Qxh2 19. O-O-O (19. Bxh5 h6 $17) 19... bxa3 20. bxa3 Nxd4 21. Nxd4 Nxf4 22. Qc4 $18 (22. Qxa6 Ra8 $17)) 19. bxa3 {[%emt 0:00:20] [#]} Nxd4 {[%emt 0:11:52] Black is more active.} 20. Nxd4 $11 {[%emt 0:04:05]} Nxf4 {[%emt 0:00:06]} 21. Bxf4 {[%emt 0:00:24]} Qxf4 {[%emt 0:00:04]} 22. Rg3 {[%emt 0:00:47][%cal Oa1d1]} Qe5 {[%emt 0:00:06][%csl LRc5,LRd4]} 23. Rd1 {[%emt 0:00:32]} Qxc5 {[%emt 0:00:05]} 24. Kf1 {[%emt 0:02:40]} Rb2 {[%emt 0:00:26][%mdl 1024] Black has compensation.} 25. Be2 {[%emt 0:01:51]} Rfb8 {[%emt 0:01:54]} 26. Qc4 {[%emt 0:02:25]} Qb6 {[%emt 0:03:42]} (26... Qxc4 $11 27. Bxc4 c6) 27. Rgd3 {[%emt 0:01:01]} (27. Re3 $14) 27... c6 {[%emt 0:00:38][%cal Bc7c6,Bc6d5,Bd5d4][%mdl 32]} 28. Nf3 {[%emt 0:00:38]} d5 {[%emt 0:00:18]} 29. exd5 {[%emt 0:00:35]} cxd5 {[%emt 0:00:54]} 30. Qf4 {[%emt 0:01:54]} h6 {[%emt 0:05:31]} 31. h4 {[%emt 0:03:25]} Rc8 {[%emt 0:00:32]} 32. Ne5 {[%emt 0:03:18]} Rc7 {[%emt 0:03:54][%cal Ob2e2]} 33. Re3 {[%emt 0:01:09]} Qb7 {[%emt 0:00:06][%cal Od5d4] And now ...d4! would win.} 34. Nd3 {[%emt 0:02:57] [#]} (34. Bd3 $11 {keeps the balance.}) 34... d4 $1 $17 {[%emt 0:02:44]} (34... Rc4 $6 35. Qg3 Rb6 36. Kg2 $11) 35. Re4 {[%emt 0:02:33] [#]} (35. f3 $17 {keeps fighting.} dxe3 36. Nxb2) 35... Rb5 $2 {[%emt 0:00:28]} (35... Rxe2 $1 $19 36. Kxe2 g5 37. hxg5 hxg5) 36. Bf3 $15 {[%emt 0:00:44][%cal Oe4e6] aiming for Rxe6!} Rf5 $1 {[%emt 0:01:04]} 37. Qg3 {[%emt 0:00:07]} Rc3 {[%emt 0:00:44][%cal Oh6h5]} 38. Rf4 $2 {[%emt 0:00:50] Now White is beyond hope.} (38. Bg2 $11 {and White stays safe.}) 38... Qb3 $19 {[%emt 0:00:20]} 39. Rxf5 {[%emt 0:01:59] Hoping for Rc5.} Rxd3 {[%emt 0:00:05]} ({Worse is} 39... exf5 40. Ke2 $11) 40. Rxf7 $2 {[%emt 0:01:23]} (40. Rf4 Be5 (40... Rxd1+ 41. Bxd1 Qxd1+ 42. Kg2 $11) 41. Rxd3 Qxd3+ 42. Be2) 40... Rxd1+ {[%emt 0:00:28] Black is clearly winning.} ({Weaker is} 40... Kxf7 41. Qc7+ Kg8 42. Rxd3 Qxd3+ 43. Kg2 $11) 41. Kg2 {[%emt 0:00:21]} Kxf7 {[%emt 0:00:17]} 42. Qc7+ {[%emt 0:00:36]} Kg8 {[%emt 0:00:26] Weighted Error Value: White=0.53/Black=0.11 (very precise) .  Loses game:     	White=1     	---        Missed win:     	---       	Black=1      Mistake:       	White=6     	Black=2      Inaccurate:     	White=2     	Black=2      OK:         	White=15    	Black=17     Best:        	White=2     	Black=4      Strong:       	White=1     	Black=2} 0-1

[Event "7th Sharjah Masters 2024"]
[Site "Sharjah"]
[Date "2024.05.19"]
[Round "6.5"]
[White "Murzin, Volodar"]
[Black "Yu, Yangyi"]
[Result "1/2-1/2"]
[ECO "C67"]
[WhiteElo "2634"]
[BlackElo "2729"]
[Annotator "TA"]
[PlyCount "26"]
[EventDate "2024.05.13"]
[EventType "swiss"]
[EventCountry "UAE"]
[SourceTitle "playchess.com"]
[Source "ChessBase"]
[SourceQuality "1"]
[TimeControl "5400+30"]

{[%evp 12,26,18,20,34,33,41,31,41,29,41,34,32,31,34,25,42]} 1. e4 {[%emt 0:01:25]} e5 {[%emt 0:00:09]} 2. Nf3 {[%emt 0:00:16]} Nc6 {[%emt 0:00:16]} 3. Bb5 {[%emt 0:00:18]} Nf6 {[%emt 0:00:13]} 4. O-O {[%emt 0:09:35]} Nxe4 {[%emt 0:00:24]} 5. Re1 {[%emt 0:00:18]} Nd6 {[%emt 0:00:24]} 6. Nxe5 {[%emt 0:00:07]} Be7 {[%emt 0:00:29]} 7. Bf1 {[%emt 0:00:08]} Nf5 {[%emt 0:01:00]} 8. Nf3 {[%emt 0:00:27]} O-O {[%emt 0:00:20]} 9. d4 {[%emt 0:00:03]} d5 {[%emt 0:00:09] White is slightly better.} 10. c3 {[%emt 0:01:44]} Bd6 {[%emt 0:00:36]} 11. Nbd2 {[%emt 0:02:27]} Re8 {[%emt 0:00:09]} 12. Rxe8+ {[%emt 0:09:43]} Qxe8 {[%emt 0:00:07]} 13. Bd3 {[%emt 0:00:10]} Nce7 {[%emt 0:01:08] Weighted Error Value: White=0.02 (flawless) /Black=0.04 (flawless) .  OK:         	White=4     	Black=1} 1/2-1/2

[Event "7th Sharjah Masters 2024"]
[Site "Sharjah"]
[Date "2024.05.19"]
[Round "6.6"]
[White "Sarana, Alexey"]
[Black "Sankalp Gupta"]
[Result "1-0"]
[ECO "D27"]
[WhiteElo "2706"]
[BlackElo "2532"]
[Annotator "TA"]
[PlyCount "135"]
[EventDate "2024.05.13"]
[EventType "swiss"]
[EventCountry "UAE"]
[SourceTitle "playchess.com"]
[Source "ChessBase"]
[SourceQuality "1"]
[TimeControl "5400+30"]

{[%evp 59,135,105,92,70,65,8,14,0,0,3,5,16,35,29,10,14,10,31,117,51,37,40,32,32,36,27,37,23,153,139,153,160,156,159,145,104,89,120,175,181,160,175,173,195,203,198,192,195,197,140,245,150,256,0,265,262,259,243,248,186,522,518,8271,8271,6311,6311,4757,1755,11473,11473,11473,11473,6740,6087,7861,7897,1914,1657]} 1. d4 {[%emt 1:31:00]} d5 {[%emt 1:31:00]} 2. c4 {[%emt 0:00:30]} dxc4 {[%emt 0:00:30]} 3. Nf3 {[%emt 0:00:30]} Nf6 {[%emt 0:00:30]} 4. e3 {[%emt 0:00:30]} e6 {[%emt 0:00:30]} 5. Bxc4 {[%emt 0:00:30]} c5 {[%emt 0:00:30]} 6. O-O {[%emt 0:00:30]} a6 {[%emt 0:00:30]} 7. dxc5 {[%emt 0:00:30] 7.b3 is the modern continuation.} Bxc5 {[%emt 0:00:30]} 8. Qxd8+ {[%emt 0:00:30]} Kxd8 {[%emt 0:00:30]} 9. Be2 {[%emt 0:00:30] D27: Queen's Gambit Accepted: Classical main line: 7 e4!? and 7 a4.} Ke7 {[%emt 0:00:30]} 10. Nc3 {[%emt 0:00:30]} b5 {[%emt 0:00:30]} 11. Nd2 {[%emt 0:00:30]} Bb7 {[%emt 0:00:30]} 12. Nb3 {[%emt 0:00:30]} Nbd7 {[%emt 0:00:30]} 13. Na5 {[%emt 0:00:30]} Ra7 {[%emt 0:00:30]} 14. a4 {[%emt 0:00:30]} b4 {[%emt 0:00:30]} 15. Na2 {[%emt 0:00:30]} Bd5 {[%emt 0:00:30]} 16. Rd1 $146 {[%emt 0:00:30]} ({Predecessor:} 16. Bd2 Ne4 17. Bxb4 Rb8 18. Bc3 Nxc3 19. Nxc3 Rxb2 20. Nxd5+ exd5 21. Nc6+ Kd6 22. Nxa7 Rxe2 {1-0 Manolache,M (2478)-Miszler,L (2252) Baia Mare Limpedea Cup 5th 2022 (2)}) 16... Nb8 {[%emt 0:00:30]} 17. Bd2 {[%emt 0:00:30]} Bxa2 {[%emt 0:00:30]} 18. Rxa2 {[%emt 0:00:30]} Rd8 {[%emt 0:00:30]} 19. Raa1 {[%emt 0:00:30]} Ke8 {[%emt 0:00:30]} 20. Rac1 {[%emt 0:00:30]} Be7 {[%emt 0:00:30]} 21. Kf1 {[%emt 0:00:30]} Rad7 {[%emt 0:00:30]} 22. Be1 {[%emt 0:00:30]} Nd5 {[%emt 0:00:30]} 23. Nc4 {[%emt 0:00:30]} f5 {[%emt 0:00:30]} 24. Bf3 {[%emt 0:00:30]} Nf6 {[%emt 0:00:30]} 25. Na5 {[%emt 0:00:30]} Nd5 {[%emt 0:00:30]} 26. g4 g6 {[%emt 0:00:30]} 27. gxf5 {[%emt 0:01:00]} exf5 {[%emt 0:00:30]} 28. Nc4 {[%emt 0:00:30]} Nf6 {[%emt 0:00:30]} 29. Na5 {[%emt 0:00:30]} Nd5 {[%emt 0:00:30]} 30. Rxd5 {[%emt 0:00:30]} Rxd5 {[%emt 0:00:30]} 31. Nb7 {[%emt 0:00:30]} (31. Bxd5 {simplifies} Rxd5 32. Rc8+ Rd8 33. Rc4) 31... Re5 {[%emt 0:00:30]} 32. Rc7 {[%emt 0:00:30]} (32. Be2 $14) 32... a5 $1 $11 {[%emt 0:00:30]} 33. Nxd8 {[%emt 0:00:30]} Kxd8 {[%emt 0:00:30]} 34. Ra7 {[%emt 0:00:30]} Rc5 {[%emt 0:00:30]} 35. b3 {[%emt 0:00:30]} Nd7 {[%emt 0:00:30]} 36. Be2 {[%emt 0:00:30]} Bd6 {[%emt 0:00:30]} 37. Bb5 {[%emt 0:00:30]} Bc7 {[%emt 0:00:30]} 38. f3 {[%emt 0:00:30]} Rc2 {[%emt 0:00:30]} (38... Kc8 $14) 39. Ra8+ {[%emt 0:00:30]} ({White should play} 39. Bg3 $16) 39... Nb8 $1 $14 {[%emt 0:00:30]} 40. Bg3 {[%emt 0:00:30]} Rc3 {[%emt 0:00:30]} 41. Ke2 {[%emt 0:00:30]} Bxg3 {[%emt 0:00:30]} 42. hxg3 {[%emt 0:00:30]} Kc7 $1 {[%emt 0:00:30]} 43. Ra7+ {[%emt 0:00:30]} Kd6 {[%emt 0:00:30]} (43... Kb6 $11 {remains equal.} 44. Rxh7 Rc2+ (44... Rxb3 45. Rg7 $18) 45. Kd1 Rc3) 44. Rxh7 $16 {[%emt 0:00:30]} Nc6 {[%emt 0:00:30]} (44... Rxb3 45. Rg7) 45. Rh6 {[%emt 0:00:30]} Ne7 {[%emt 0:00:30]} (45... Ne5 46. f4 Ng4 47. Rxg6+ Kd5 48. Bc4+ Kc5 49. e4 (49. Re6 Rc2+ 50. Ke1 Rb2 $18)) 46. Bc4 {[%emt 0:00:30]} Rc2+ {[%emt 0:00:30]} 47. Kd3 {[%emt 0:00:30]} Rg2 {[%emt 0:00:30]} 48. Rh3 {[%emt 0:00:30]} g5 {[%emt 0:00:30]} (48... Nd5 $16) 49. Rh6+ $18 {[%emt 0:00:30]} Kc7 {[%emt 0:00:30]} 50. Re6 {[%emt 0:00:30]} Kd7 {[%emt 0:00:30]} 51. g4 {[%emt 0:00:30]} fxg4 {[%emt 0:00:30]} 52. fxg4 {[%emt 0:00:30]} Rxg4 {[%emt 0:00:30] [#]} 53. Ra6 $1 {[%emt 0:00:30]} Rg1 {[%emt 0:00:30]} 54. Rxa5 {[%emt 0:00:30]} Kd6 {[%emt 0:00:30]} (54... g4 $16 {keeps fighting.} 55. Rg5 g3) 55. Ra6+ {[%emt 0:00:30]} Kc5 {[%emt 0:00:30]} (55... Kc7 $16 56. Re6 Nf5) 56. Ra5+ {[%emt 0:00:30]} Kd6 {[%emt 0:00:30]} 57. Ke4 {[%emt 0:00:30]} Nc6 {[%emt 0:00:30]} 58. Rd5+ {[%emt 0:00:30]} Kc7 {[%emt 0:00:30]} 59. Rf5 {[%emt 0:00:30]} Kb6 $2 {[%emt 0:00:30]} (59... g4 60. Rg5 g3) 60. a5+ $18 {[%emt 0:00:30]} Ka7 {[%emt 0:00:30]} (60... Kc7 $142 61. a6 Rg4+ 62. Kf3 Rg1 63. Rf7+ Kd6) 61. Rf7+ $18 {[%emt 0:00:30]} Kb8 {[%emt 0:00:30]} 62. a6 {[%emt 0:00:30]} Ra1 {[%emt 0:00:30]} 63. Rb7+ {[%emt 0:00:30]} Kc8 {[%emt 0:00:30]} 64. Be6+ {[%emt 0:00:30]} Kd8 {[%emt 0:00:30] [#]} 65. Rd7+ $1 {[%emt 0:00:30]} Ke8 {[%emt 0:00:30]} 66. Rc7 {[%emt 0:00:30]} Rxa6 {[%emt 0:00:30]} 67. Bd7+ {[%emt 0:00:30]} Ke7 {[%emt 0:00:30]} 68. Rxc6 {[%emt 0:00:30]} 1-0